Cogmind - Beta 12 @@@ ROGUE MODE // 2023.05.27 @ 14:43:14 Player: ldi (hl). (hl) Result: Destroyed by H-66 Slayer with Gauss Rifle Performance ------------- Evolutions (5) 2500 Regions Visited (12) 2400 Robots Destroyed (100) 500 Value Destroyed (3512) 3512 Prototype IDs (7) 140 Alien Tech Used (0) 0 Bonus (-567) -567 TOTAL SCORE: 8485 Bonus ------- High Alert Combat Kills 81 Follower Combat Kills 1685 Met Zhirov 300 Read Decrypted Archives 300 Friendly Fire -2933 Cogmind --------- Core Integrity 0/1000 Matter 103/300 Energy 98/100 System Corruption 0% Temperature Cool (0) Movement Core (50) Location -5/Factory Parts ------- > --- POWER (1) -------- (None) > --- PROPULSION (4) --- (None) > --- UTILITY (10) ----- Advanced Signal Interpreter > --- WEAPON (2) ------- (None) > --- INVENTORY (5) ---- Neutrino Core Advanced KE Penetrator Greatsword Peak State ------------ > --- POWER ------------ Quantum Reactor > --- PROPULSION ------- Medium Treads Carbon-fiber Leg Carbon-fiber Leg Carbon-fiber Leg > --- UTILITY ---------- Improved Heat Sink Huge Storage Unit Enhanced Optical Array Advanced Signal Interpreter Advanced Melee Analysis Suite Centrium Medium Armor Plating Centrium Medium Armor Plating Hacking Suite > --- WEAPON ----------- Advanced KE Penetrator Advanced KE Penetrator > --- INVENTORY -------- Light Ion Engine Fusion Compressor Advanced Treads High-capacity Storage Unit High-capacity Storage Unit High-capacity Matter Pod Improved Shield Generator System Restoration Module Improved Spread Laser Improved Spread Laser Improved Spread Laser Improved Spread Laser Advanced Variable Charge Gun Heavy Plasma Cannon Flak Gun Advanced KE Penetrator Heavy Flak Cannon Grenade Launcher Grenade Launcher Mini Grenade Launcher Greatsword Greatsword [Rating: 87] Favorites ----------- Power Ion Engine Engine Ion Engine Power Core Fission Core Reactor Quantum Reactor Propulsion Aluminum Leg Treads Medium Treads Leg Aluminum Leg Wheel Wheel Hover Unit Linear Gravjet Utility Hacking Suite Device Cooling System Storage Huge Storage Unit Processor Advanced Visual Processing Unit Hackware Hacking Suite Protection Hardened Medium Armor Plating Weapon Improved Spread Laser Energy Gun Improved Spread Laser Energy Cannon Heavy Plasma Cannon Ballistic Gun Light Assault Rifle Ballistic Cannon Heavy Flak Cannon Launcher Mini Grenade Launcher Slashing Weapon Greatsword Build | -11 -10 -10 -10 -9 -8 -7 -6 -6 -6 -6 -6 -5 ------- Run | Jun Mat Min Exi Min Mat Fac Fac Ext Cet Arc Hub Fac Slots Evolved 10 | . . . . . 4 2 2 . . . . 2 Power . | . . . . . . . . . . . . . Propulsion 2 | . . . . . . 2 . . . . . . Utility 8 | . . . . . 4 . 2 . . . . 2 Weapon . | . . . . . . . . . . . . . Parts Attached 106 | 6 8 3 1 . 17 20 4 10 5 . 28 4 Power 13 | 1 1 1 . . 1 4 1 1 1 . 2 . Engine 8 | 1 1 1 . . . 4 . . . . 1 . Core 3 | . . . . . 1 . 1 1 . . . . Reactor 2 | . . . . . . . . . 1 . 1 . Propulsion 28 | 2 3 1 . . 2 8 1 3 . . 7 1 Treads 11 | . . . . . . 5 1 3 . . 2 . Leg 14 | 2 3 1 . . 2 3 . . . . 3 . Wheel 2 | . . . . . . . . . . . 2 . Hover 1 | . . . . . . . . . . . . 1 Flight . | . . . . . . . . . . . . . Utility 32 | 1 3 . 1 . 9 3 2 6 1 . 5 1 Device 6 | . 2 . . . 1 . . . . . 2 1 Storage 4 | 1 1 . 1 . . 1 . . . . . . Processor 7 | . . . . . 2 1 1 2 1 . . . Hackware 2 | . . . . . 2 . . . . . . . Protection 13 | . . . . . 4 1 1 4 . . 3 . Artifact . | . . . . . . . . . . . . . Weapon 33 | 2 1 1 . . 5 5 . . 3 . 14 2 Energy Gun 14 | 2 . 1 . . 5 3 . . . . 3 . Energy Cannon 2 | . . . . . . 1 . . . . 1 . Ballistic Gun 7 | . 1 . . . . . . . 1 . 4 1 Ballistic Cannon 3 | . . . . . . . . . 1 . 2 . Launcher 5 | . . . . . . 1 . . . . 4 . Special Weapon . | . . . . . . . . . . . . . Impact Weapon . | . . . . . . . . . . . . . Slashing Weapon 2 | . . . . . . . . . 1 . . 1 Piercing Weapon . | . . . . . . . . . . . . . Special Melee Weapon . | . . . . . . . . . . . . . Unidentified Prototypes 4 | . . . . . . 2 . . . . 2 . Corrupted Parts 3 | . . . . . 2 1 . . . . . . System Corruption 4 | . . . . . 3 1 . . . . . . Parts Lost 39 | . 2 1 . . 5 . 1 3 . . 22 5 Power 3 | . 1 . . . . . . . . . 2 . Propulsion 13 | . . . . . . . . 2 . . 10 1 Utility 16 | . 1 . . . 3 . 1 1 . . 7 3 Weapon 7 | . . 1 . . 2 . . . . . 3 1 Highest Loss Streak 12 | . 2 1 . . 2 . 1 3 . . 12 5 To Critical Strikes 1 | . . . . . . . . . . . . 1 Average Slot Usage (%) 95 | . 88 99 100 100 99 99 96 93 92 93 91 21 Engine 4 | . 9 14 14 14 . 5 . . . . . . Core 2 | . . . . . 8 1 5 6 1 . . . Treads 12 | . . . . . . 16 26 25 26 26 18 . Leg 12 | . 28 28 28 28 18 12 . . . . 3 . Device 7 | . 7 14 14 14 8 7 6 6 . . 4 2 Storage 8 | . 14 14 14 14 9 7 6 6 6 6 6 . Processor 8 | . . . . . 8 6 12 13 19 20 20 14 Hackware 5 | . . . . . 9 12 6 6 6 6 5 . Protection 9 | . . . . . 17 10 16 13 13 13 11 . Energy Gun 13 | . 27 13 14 14 17 14 13 13 . . 8 . Ballistic Gun 3 | . . 14 14 14 . . . . 4 6 1 . Naked Turns . | . . . . . . . . . . . . . Heaviest Build 134 | 12 18 19 49 49 68 108 115 122 134 134 134 8 Greatest Support 112 | 20 20 20 20 20 27 112 112 106 93 93 93 9 Greatest Overweight (x) 8 | . . . 2 2 3 3 1 2 1 1 8 . Average Overweight (x) . | . . . . 2 2 . . 1 1 1 1 . Largest Inventory Capacity 25 | 8 10 10 20 20 20 25 25 25 25 25 25 5 Average Capacity 20 | 7 9 10 10 20 20 24 25 25 25 25 24 5 Most Carried 25 | 1 10 10 10 17 20 25 25 25 25 25 25 5 Average Carried 19 | . 5 9 9 15 18 24 24 24 24 25 23 4 Final Capacity 25 | 8 10 10 20 20 20 25 25 25 25 25 5 5 Final Carried 25 | 1 10 10 10 17 19 25 25 24 25 25 5 4 Class Distribution -------------------- 43% | Mutant 35% | Scavenger-Mutant 11% | Commander-Mutant 8% | Hacker-Mutant Dominant Class ---------------- Mutant | -10/Materials Scavenger-Mutant | -10/Mines Scavenger-Mutant | -10/Exiles Scavenger-Mutant | -9/Mines Hacker-Mutant | -8/Materials Scavenger-Mutant | -7/Factory Mutant | -6/Factory Commander-Mutant | -6/Extension Mutant | -6/Cetus Mutant | -6/Archives Mutant | -6/Hub_04(d) Mutant | -5/Factory Resources | -11 -10 -10 -10 -9 -8 -7 -6 -6 -6 -6 -6 -5 ----------- Run | Jun Mat Min Exi Min Mat Fac Fac Ext Cet Arc Hub Fac Matter Collected 1596 | 242 73 48 . 74 281 149 133 70 179 . 315 32 Remotely . | . . . . . . . . . . . . . Salvage Created 3858 | . 452 188 . . 846 650 178 401 118 . 1025 . Parts 163 | . 32 7 . . 33 28 8 15 2 . 38 . Haulers Intercepted 4 | . 2 . . . . 2 . . . . . . Recyclers Shooed 5 | . 1 1 . . 1 . . . . . 2 . Parts Field Recycled . | . . . . . . . . . . . . . Retrieved Matter . | . . . . . . . . . . . . . Parts Self-Destructed . | . . . . . . . . . . . . . Prevented . | . . . . . . . . . . . . . Kills | -11 -10 -10 -10 -9 -8 -7 -6 -6 -6 -6 -6 -5 ------- Run | Jun Mat Min Exi Min Mat Fac Fac Ext Cet Arc Hub Fac Combat Hostiles Destroyed 71 | . 12 2 . . 14 9 3 6 3 . 22 . Guns 45 | . 12 2 . . 9 5 3 6 . . 8 . Cannons 5 | . . . . . . . . . 3 . 2 . AOE 16 | . . . . . 2 3 . . . . 11 . Classes Destroyed 17 | . 3 1 . . 3 5 . 2 . . 3 . Worker 6 | . . . . . . 2 . . . . 4 . Builder 4 | . . . . . . . . 2 . . 2 . Tunneler 2 | . . . . . . 2 . . . . . . Hauler 4 | . 2 . . . . 2 . . . . . . Recycler 3 | . . 1 . . . 1 . . . . 1 . Mechanic 1 | . . . . . . 1 . . . . . . Operator 1 | . . . . . 1 . . . . . . . Watcher 4 | . . . . . 1 1 1 . . . 1 . Swarmer 7 | . 6 . . . . . . . 1 . . . Cutter 2 | . . . . . . . . . . . 2 . Grunt 44 | . 6 2 . . 13 6 3 2 1 . 11 . Brawler 2 | . . . . . . . . . . . 2 . Duelist 2 | . . . . . . . . 1 . . 1 . Sentry 7 | . . . . . 1 1 . 3 . . 2 . Hunter 3 | . . . . . . 1 . . . . 2 . Programmer 3 | . . . . . . 1 . . 1 . 1 . Heavy 1 | . . . . . . . . . . . 1 . Thug 1 | . . . . . . . . . 1 . . . Butcher 2 | . . . . . . . . 2 . . . . Best Kill Streak 15 | . 6 2 . . 3 7 3 3 1 . 15 . Combat Bots Only 8 | . 5 1 . . 3 4 3 3 1 . 8 . Max Kills in Single Turn 5 | . 1 1 . . 2 5 1 1 1 . 4 . Gunslinging 1 | . . . . . 1 . . . . . 1 . Exploded 3 | . . . . . 2 3 . . . . 3 . Melee . | . . . . . . . . . . . . . Uniques/NPCs Destroyed 1 | . . . . . . . . 1 . . . . A7 (-6/Extension) Combat | -11 -10 -10 -10 -9 -8 -7 -6 -6 -6 -6 -6 -5 -------- Run | Jun Mat Min Exi Min Mat Fac Fac Ext Cet Arc Hub Fac Damage Taken 8325 | . 510 185 . . 827 754 169 656 160 58 3737 1269 Core 2020 | . 123 13 . . 166 64 . 63 . . 582 1009 Absorbed by Shields 261 | . . . . . . . . 107 . . 154 . Redirected to Shielding 51 | . . . . . 51 . . . . . . . Core Remaining (%) 65 | 100 . . . 45 69 90 . . . . 24 . Volleys Fired 243 | . 41 13 . . 41 31 10 42 7 . 58 . Largest 2 | . 2 2 . . 2 2 2 2 2 . 2 . Hottest 155 | . 80 60 . . 110 150 150 150 81 . 155 . Shots Fired 474 | . 82 26 . . 81 60 20 84 14 . 107 . Gun 438 | . 82 26 . . 81 57 20 84 7 . 81 . Cannon 21 | . . . . . . 1 . . 7 . 13 . Launcher 15 | . . . . . . 2 . . . . 13 . Special . | . . . . . . . . . . . . . Kinetic 71 | . . 13 . . . . . . 14 . 44 . Thermal 275 | . 82 7 . . . 32 20 84 . . 50 . Explosive 15 | . . . . . . 2 . . . . 13 . Electromagnetic 113 | . . 6 . . 81 26 . . . . . . Robot Hit Streak 19 | . 10 17 . . 9 19 5 15 7 . 18 . Robot Miss Streak 10 | . 3 2 . . 4 7 7 9 10 . 6 . Penetration Max 1 | . . . . . . . . . . . 1 . Secondary Targets 8 | . 4 . . . 2 . 1 . . . 1 . Max Gunslinging Chain 1 | . 1 . . . 1 . 1 . . . 1 . Shots Hit Robots 380 | . 57 21 . . 56 42 19 79 13 . 92 1 Core Hits 428 | . 25 9 . . 29 51 30 125 21 . 138 . Critical Kills . | . . . . . . . . . . . . . Critical Parts Destroyed . | . . . . . . . . . . . . . Critical Strikes 4 | . . . . . 1 2 . . . . . 1 Corrupt 3 | . . . . . 1 2 . . . . . . Sever 1 | . . . . . . . . . . . . 1 Melee Attacks 4 | . . . . . . . . . . . . 4 Impact . | . . . . . . . . . . . . . Slashing 4 | . . . . . . . . . . . . 4 Piercing . | . . . . . . . . . . . . . Sneak Attacks . | . . . . . . . . . . . . . Combat Hostiles . | . . . . . . . . . . . . . Follow-up Attacks . | . . . . . . . . . . . . . Damage Inflicted 10466 | . 696 222 . 2 1443 1444 335 2230 302 . 3742 50 Guns 7729 | . 693 202 . . 1234 893 335 2224 142 . 2006 . Cannons 380 | . . . . . . . . . 160 . 220 . Explosions 2270 | . . 20 . . 204 551 . . . . 1495 . Melee 49 | . . . . . . . . . . . . 49 Ramming 38 | . 3 . . 2 5 . . 6 . . 21 1 Kinetic 1294 | . . 88 . . . . . . 302 . 904 . Thermal 5405 | . 693 95 . . 204 532 335 2224 . . 1322 . Explosive 2046 | . . . . . . 551 . . . . 1495 . Electromagnetic 1634 | . . 39 . . 1234 361 . . . . . . Impact . | . . . . . . . . . . . . . Slashing 49 | . . . . . . . . . . . . 49 Piercing . | . . . . . . . . . . . . . Highest Corruption 4 | . . . . . 3 4 . 1 1 1 2 . Average Corruption 1 | . . . . . 2 2 . 1 1 1 1 . Corruption Purged . | . . . . . . . . . . . . . Corruption Blocked . | . . . . . . . . . . . . . Effects 39 | . . . . . 8 14 . 6 3 1 7 . Message Errors 12 | . . . . . 2 4 . 3 1 . 2 . Matter Fused 7 | . . . . . . 3 . . 2 . 2 . Heat Flow Errors 4 | . . . . . 1 . . 1 . 1 1 . Energy Discharges 5 | . . . . . . 3 . 1 . . 1 . Parts Fused 1 | . . . . . . 1 . . . . . . Data Loss (minor) 4 | . . . . . 2 1 . 1 . . . . Data Loss (major) 4 | . . . . . 3 1 . . . . . . Misfires 1 | . . . . . . 1 . . . . . . Weapon Failures 1 | . . . . . . . . . . . 1 . Overload Shots . | . . . . . . . . . . . . . Overflow Damage 89 | . . . . . . 72 . . . . 17 . Projectiles . | . . . . . . . . . . . . . Explosions 89 | . . . . . . 72 . . . . 17 . Melee . | . . . . . . . . . . . . . Knockbacks 9 | . . . . . . . . . 3 . 6 . Impact . | . . . . . . . . . . . . . Kinetic 8 | . . . . . . . . . 2 . 6 . Secondary 1 | . . . . . . . . . 1 . . . Self-Inflicted Damage 550 | . . 4 . . . 450 . . . . 96 . Shots 10 | . . 1 . . . 5 . . . . 4 . Rammed 3 | . . . . . . . . . . . 2 1 Targets Rammed 9 | . 2 . . 1 2 . . 1 . . 2 1 Kicked 5 | . 2 . . 1 2 . . . . . . . Crushed 1 | . . . . . . . . 1 . . . . Highest Temperature 427 | . 246 18 . . 306 186 217 172 108 272 427 . Average Temperature 79 | . 84 10 . . 62 44 94 46 39 154 121 . Received Heat Transfer 2262 | . 147 114 . . 531 102 90 240 63 45 930 . Effects 9 | . . . . . 3 . . . . 1 5 . Shutdowns 1 | . . . . . . . . . . . 1 . Energy Bleed 2 | . . . . . 1 . . . . . 1 . Interference 6 | . . . . . 2 . . . . 1 3 . Siege Activations . | . . . . . . . . . . . . . Robots Corrupted 4 | . . . . . 3 1 . . . . . . Combat Hostiles 4 | . . . . . 3 1 . . . . . . Parts Fried 12 | . . . . . 8 4 . . . . . . Impact Corruptions . | . . . . . . . . . . . . . Robots Melted 1 | . . . . . . . . . . . 1 . Combat Hostiles 1 | . . . . . . . . . . . 1 . Parts Melted 1 | . . . . . . . . . . . 1 . Heat Transferred 6132 | . 1550 225 . . 200 440 275 1522 . . 1920 . Parts Sabotaged . | . . . . . . . . . . . . . Parts Stolen . | . . . . . . . . . . . . . Parts Stripped . | . . . . . . . . . . . . . Power Chain Reactions 3 | . . 1 . . 2 . . . . . . . Missiles Intercepted . | . . . . . . . . . . . . . Alert | -11 -10 -10 -10 -9 -8 -7 -6 -6 -6 -6 -6 -5 ------- Run | Jun Mat Min Exi Min Mat Fac Fac Ext Cet Arc Hub Fac Peak Influence 724 | . 272 111 . . 187 356 274 724 673 231 451 112 Initial 404 | . . 46 . . . 55 174 35 404 189 73 112 Average 165 | . 130 101 . . 60 98 205 280 521 199 192 101 Maximum Alert Level 3 | . 1 . . . . 1 1 3 2 1 2 . Low Security (%) 71 | 100 81 100 . 100 100 87 58 45 . 55 61 100 Level 1 16 | . 18 . . . . 12 41 26 3 45 34 . Level 2 8 | . . . . . . . . 13 96 . 3 . Level 3 3 | . . . . . . . . 13 . . . . Level 4 . | . . . . . . . . . . . . . Level 5 . | . . . . . . . . . . . . . High Security . | . . . . . . . . . . . . . Max Security . | . . . . . . . . . . . . . Squads Dispatched 23 | . 2 . . . 4 2 1 4 . . 9 1 Investigation 6 | . 1 . . . 2 . 1 2 . . . . Extermination 2 | . . . . . . 1 . . . . 1 . Reinforcement 12 | . 1 . . . 2 1 . 2 . . 5 1 Assault . | . . . . . . . . . . . . . Garrison 3 | . . . . . . . . . . . 3 . Intercept . | . . . . . . . . . . . . . Searches Triggered . | . . . . . . . . . . . . . Construction Impeded 3 | . . . . . . . . 1 . . 2 . Haulers Reinforced 3 | . . . . . . 1 . . . . 1 1 Active Scanning Responses . | . . . . . . . . . . . . . Cargo Convoy Interrupts . | . . . . . . . . . . . . . Stealth | -11 -10 -10 -10 -9 -8 -7 -6 -6 -6 -6 -6 -5 --------- Run | Jun Mat Min Exi Min Mat Fac Fac Ext Cet Arc Hub Fac Distress Signals 14 | . 4 . . . 1 . . 2 1 . 5 1 Communications Jammed . | . . . . . . . . . . . . . Distress Signals . | . . . . . . . . . . . . . Times Spotted 171 | . 22 2 . . 29 14 5 26 15 6 34 18 Peak Tracking Total 11 | . 7 2 . . 5 4 3 3 5 6 9 11 Tactical Retreats 6 | . . . . . 3 1 . 1 . . 1 . Traps | -11 -10 -10 -10 -9 -8 -7 -6 -6 -6 -6 -6 -5 ------- Run | Jun Mat Min Exi Min Mat Fac Fac Ext Cet Arc Hub Fac Traps Triggered 6 | . . . . . 1 . . 4 . . . 1 Indirectly . | . . . . . . . . . . . . . Trap Hack Attempts . | . . . . . . . . . . . . . Triggered . | . . . . . . . . . . . . . Disarmed . | . . . . . . . . . . . . . Reprogrammed . | . . . . . . . . . . . . . Reused . | . . . . . . . . . . . . . Traps Extracted . | . . . . . . . . . . . . . Installed . | . . . . . . . . . . . . . Triggered . | . . . . . . . . . . . . . Machines | -11 -10 -10 -10 -9 -8 -7 -6 -6 -6 -6 -6 -5 ---------- Run | Jun Mat Min Exi Min Mat Fac Fac Ext Cet Arc Hub Fac Machines Disabled 14 | . . . . . . 14 . . . . . . Max in Single Turn 4 | . . . . . . 4 . . . . . . Machines Repaired . | . . . . . . . . . . . . . Machines Sabotaged . | . . . . . . . . . . . . . Overloaded Fab Kills . | . . . . . . . . . . . . . Hacking | -11 -10 -10 -10 -9 -8 -7 -6 -6 -6 -6 -6 -5 --------- Run | Jun Mat Min Exi Min Mat Fac Fac Ext Cet Arc Hub Fac Machines Accessed 29 | . 2 . 3 . 1 2 4 12 2 1 2 . Terminals 23 | . 2 . . . 1 1 3 12 2 . 2 . Fabricators 1 | . . . . . . 1 . . . . . . Repair Stations . | . . . . . . . . . . . . . Recycling Units . | . . . . . . . . . . . . . Scanalyzers . | . . . . . . . . . . . . . Garrison Access 1 | . . . . . . . 1 . . . . . Total Hacks 93 | . 7 . 7 . 4 8 10 25 2 25 5 . Successful 55 | . . . 7 . 2 4 1 11 2 25 3 . Failed 38 | . 7 . . . 2 4 9 14 . . 2 . Catastrophic 3 | . . . . . . . 2 1 . . . . Database Lockouts . | . . . . . . . . . . . . . Manual 16 | . 4 . . . 4 8 . . . . . . Terminals 56 | . 7 . . . 4 6 7 25 2 . 5 . Fabricators 2 | . . . . . . 2 . . . . . . Repair Stations . | . . . . . . . . . . . . . Recycling Units . | . . . . . . . . . . . . . Scanalyzers . | . . . . . . . . . . . . . Garrison Access 3 | . . . . . . . 3 . . . . . Terminal Hacks 53 | . . . 7 . 2 2 1 11 2 25 3 . Record 33 | . . . 7 . . . . . 1 25 . . Part Schematic 2 | . . . . . 2 . . . . . . . Prototype ID Bank 1 | . . . . . . . . . . . 1 . Open Door 12 | . . . . . . . 1 10 1 . . . Level Access Points 1 | . . . . . . . . . . . 1 . Branch Access Points 1 | . . . . . . 1 . . . . . . Unreport Threat 1 | . . . . . . 1 . . . . . . Locate Traps 1 | . . . . . . . . 1 . . . . Zone Layout 1 | . . . . . . . . . . . 1 . Fabricator Hacks . | . . . . . . . . . . . . . Repair Station Hacks . | . . . . . . . . . . . . . Recycling Unit Hacks . | . . . . . . . . . . . . . Scanalyzer . | . . . . . . . . . . . . . Garrison Access Hacks . | . . . . . . . . . . . . . Unauthorized Hacks 2 | . . . . . . 2 . . . . . . Terminals 1 | . . . . . . 1 . . . . . . Botnet 1 | . . . . . . 1 . . . . . . Fabricators 1 | . . . . . . 1 . . . . . . Haulers 1 | . . . . . . 1 . . . . . . Repair Stations . | . . . . . . . . . . . . . Recycling Units . | . . . . . . . . . . . . . Scanalyzers . | . . . . . . . . . . . . . Garrison Access . | . . . . . . . . . . . . . Data Cores Recovered . | . . . . . . . . . . . . . Used . | . . . . . . . . . . . . . Hacking Detections 17 | . 2 . . . 1 2 4 6 . . 2 . Full Trace Events 6 | . 2 . . . 1 . 1 2 . . . . Feedback Events 1 | . . . . . . . . 1 . . . . Corruption 1 | . . . . . . . . 1 . . . . Feedback Blocked . | . . . . . . . . . . . . . Robot Schematics Acquired . | . . . . . . . . . . . . . Robots Built . | . . . . . . . . . . . . . Authchips . | . . . . . . . . . . . . . Time . | . . . . . . . . . . . . . Total Robot Build Rating . | . . . . . . . . . . . . . Part Schematics Acquired 2 | . . . . . 2 . . . . . . . Parts Built . | . . . . . . . . . . . . . Authchips . | . . . . . . . . . . . . . Time . | . . . . . . . . . . . . . Total Part Build Rating . | . . . . . . . . . . . . . Parts Repaired . | . . . . . . . . . . . . . Time . | . . . . . . . . . . . . . Parts Recycled . | . . . . . . . . . . . . . Recycled Matter . | . . . . . . . . . . . . . Retrieved Matter . | . . . . . . . . . . . . . Retrieved Components . | . . . . . . . . . . . . . Parts Scanalyzed . | . . . . . . . . . . . . . Part Schematics Acquired . | . . . . . . . . . . . . . Parts Damaged . | . . . . . . . . . . . . . Bothacking | -11 -10 -10 -10 -9 -8 -7 -6 -6 -6 -6 -6 -5 ------------ Run | Jun Mat Min Exi Min Mat Fac Fac Ext Cet Arc Hub Fac Used RIF Installer . | . . . . . . . . . . . . . Robots Hacked . | . . . . . . . . . . . . . Non-combat . | . . . . . . . . . . . . . Combat . | . . . . . . . . . . . . . Robot Hacks Applied . | . . . . . . . . . . . . . Relay Couplers Released . | . . . . . . . . . . . . . Fabnet Peak Effective % . | . . . . . . . . . . . . . Robots Rewired 15 | . . . . . . . . 15 . . . . Allies Hacked 1 | . . . . . . . . . 1 . . . Hacks Repelled . | . . . . . . . . . . . . . Allies | -11 -10 -10 -10 -9 -8 -7 -6 -6 -6 -6 -6 -5 -------- Run | Jun Mat Min Exi Min Mat Fac Fac Ext Cet Arc Hub Fac Total Allies 30 | . . . . . . . . 30 . . . . Largest Group 12 | . . . . . . . . 12 11 1 . . Highest-Rated Group 461 | . . . . . . . . 461 309 34 . . Highest-Rated Ally 159 | . . . . . . . . 159 39 34 . . Total Orders . | . . . . . . . . . . . . . Ally Attacks 246 | . . . . . . . . 164 80 2 . . Total Damage 5454 | . . . . . . . . 4255 1139 60 . . Kills 44 | . . . . . . . . 31 11 2 . . Allies Corrupted . | . . . . . . . . . . . . . Allies Melted 1 | . . . . . . . . 1 . . . . Intel | -11 -10 -10 -10 -9 -8 -7 -6 -6 -6 -6 -6 -5 ------- Run | Jun Mat Min Exi Min Mat Fac Fac Ext Cet Arc Hub Fac Robot Analysis Total . | . . . . . . . . . . . . . Derelict Logs Recovered 1 | . . 1 . . . . . . . . . . Drone Launches . | . . . . . . . . . . . . . Drone Recoveries . | . . . . . . . . . . . . . Exploration | -11 -10 -10 -10 -9 -8 -7 -6 -6 -6 -6 -6 -5 ------------- Run | Jun Mat Min Exi Min Mat Fac Fac Ext Cet Arc Hub Fac Turns Passed 7868 | 72 555 168 785 821 964 1142 408 1550 400 100 809 94 Spaces Moved 3444 | 55 318 103 621 308 269 495 160 542 150 43 225 155 Core 109 | 5 . . . . . . . . . . 8 96 Treads 1403 | . . . . . . 328 160 542 150 43 180 . Legs 1870 | 50 318 103 621 308 269 167 . . . . 34 . Wheels 3 | . . . . . . . . . . . 3 . Hover 59 | . . . . . . . . . . . . 59 Flight . | . . . . . . . . . . . . . Fastest Speed 40 | 50 120 120 120 260 260 160 160 235 236 236 50 40 Average Speed 191 | 113 120 120 126 260 292 190 232 236 236 236 243 46 Slowest Speed 680 | 120 120 120 260 260 330 400 240 312 236 236 680 50 Overloaded Moves . | . . . . . . . . . . . . . Propulsion Burnouts . | . . . . . . . . . . . . . Robots Hopped . | . . . . . . . . . . . . . Cave-ins Triggered . | . . . . . . . . . . . . . Exploration Rate (%) 41 | 4 39 25 90 69 23 19 5 73 79 79 28 6 Regions Visited 12 Branch Regions 7 Pre-discovered Areas 1 | . . . 1 . . . . . . . . . Known Exits Taken 5 | . . . . . . . 1 1 1 1 1 . Unknown Exits Taken 7 | 1 1 1 1 1 1 1 . . . . . . Scrap Searched 4 | . . 1 . 3 . . . . . . . . Spaces Dug 5 | . . . . . . 5 . . . . . . Terrain Destroyed 146 | . . 5 . . 8 59 . . . . 74 . Melee . | . . . . . . . . . . . . . Projectile 6 | . . . . . . . . . . . 6 . AOE 140 | . . 5 . . 8 59 . . . . 68 . Terrain Rammed . | . . . . . . . . . . . . . Walls Destroyed . | . . . . . . . . . . . . . Machines Disabled . | . . . . . . . . . . . . . Actions | -11 -10 -10 -10 -9 -8 -7 -6 -6 -6 -6 -6 -5 --------- Run | Jun Mat Min Exi Min Mat Fac Fac Ext Cet Arc Hub Fac Total 4221 | 61 409 124 624 328 368 639 177 733 187 42 360 169 Wait 178 | . 22 5 . 13 12 59 . 13 10 . 44 . Move 3432 | 54 317 102 620 307 268 494 159 541 149 42 224 155 Hop . | . . . . . . . . . . . . . Pick Up 71 | 1 13 . 1 7 15 14 2 7 7 . 2 2 Fast Attach 39 | 6 1 . . . 3 11 1 7 . . 8 2 Attach 31 | . 2 1 . . 10 3 3 1 3 . 6 2 Detach 11 | . . . . . 2 3 2 1 2 . 1 . Swap 36 | . 5 2 1 . 4 6 . 2 2 . 14 . Drop 58 | . 6 1 2 . 11 18 . 11 7 . 1 1 Fire 243 | . 41 13 . . 41 31 10 42 7 . 58 . Melee 4 | . . . . . . . . . . . . 4 Ram 1 | . . . . . . . . . . . . 1 Kick 5 | . 2 . . 1 2 . . . . . . . Crush 3 | . . . . . . . . 1 . . 2 . Escape Stasis 9 | . . . . . . . . 9 . . . . Rewire 100 | . . . . . . . . 98 . . . 2 Trap . | . . . . . . . . . . . . . Miscellaneous . | . . . . . . . . . . . . . Route ------- -11/Junkyard -10/Materials (discovered 2 exits: [*Mat] / [*Min]) -10/Mines -10/Exiles (discovered 2 exits: [*Min x2]) -9/Mines -8/Materials -7/Factory (discovered 3 exits: *Fac / *Low x2) -6/Factory (discovered 2 exits: *Fac / *Ext) -6/Extension (discovered 2 exits: *Fac / *Cet) -6/Cetus -6/Archives (discovered 2 exits: *Hub x2) -6/Hub_04(d) (discovered 4 exits: *Fac x4) -5/Factory History --------- Turn | Location | Event 22 | -11/Junkyard | Discovered new exit (range 14) 73 | -11/Junkyard | Entered Materials 316 | -10/Materials | Build established: Mutant 473 | -10/Materials | Discovered new exit (range 16) 491 | -10/Materials | Discovered new exit (range 14) 628 | -10/Materials | Entered Mines 631 | -10/Mines | Core integrity fell below 50% 740 | -10/Mines | Learned Materials emergency access door positions 790 | -10/Mines | Deemed a non-threat by the Exiles lab entrance 791 | -10/Mines | Discovered new exit (range 5) 796 | -10/Mines | Entered Exiles 814 | -10/Exiles | Discovered new exit (range 14) 849 | -10/Exiles | Met 8R-AWN 868 | -10/Exiles | Met EX-HEX 901 | -10/Exiles | Met EX-BIN 903 | -10/Exiles | Build established: Scavenger-Mutant 1018 | -10/Exiles | Met EX-DEC 1024 | -10/Exiles | Learned location of Zion (-6) 1097 | -10/Exiles | Visited The Gauntlet 1558 | -10/Exiles | Discovered new exit (range 10) 1581 | -10/Exiles | Entered Mines 1676 | -9/Mines | Met a Derelict bent on vengeance 2086 | -9/Mines | Assembled infested the area 2091 | -9/Mines | Assisted by a Guerilla fighting off Assembled 2392 | -9/Mines | Discovered new exit (range 5) 2402 | -9/Mines | Entered Materials 2402 | -8/Materials | Evolved 4 slots: Utility x4 3259 | -8/Materials | Build established: Hacker-Mutant 3305 | -8/Materials | Discovered new exit (range 7) 3366 | -8/Materials | Entered Factory 3366 | -7/Factory | Evolved 2 slots: Propulsion x2 3978 | -7/Factory | Identified exit to Lower Caves 4398 | -7/Factory | Discovered new exit (range 12) 4401 | -7/Factory | Build established: Mutant 4508 | -7/Factory | Entered another Factory area 4508 | -6/Factory | Evolved 2 slots: Utility x2 4864 | -6/Factory | Discovered new exit (range 3) 4869 | -6/Factory | Identified exit to Factory 4892 | -6/Factory | Discovered new exit (range 10) 4909 | -6/Factory | Identified exit to Extension 4916 | -6/Factory | Entered Extension 5135 | -6/Extension | Rescued a captive Derelict 5136 | -6/Extension | Rescued a captive Derelict 5270 | -6/Extension | Lost 3 parts (2n1u) 5345 | -6/Extension | Rescued a captive Derelict 5354 | -6/Extension | Rescued a captive Derelict 5404 | -6/Extension | Rescued A7 5523 | -6/Extension | Rescued a captive Derelict 5524 | -6/Extension | Rescued a captive Derelict 5658 | -6/Extension | Rescued a captive Derelict 5691 | -6/Extension | Spotted B-75 Beast 5696 | -6/Extension | Rescued a captive Derelict 5697 | -6/Extension | Rescued a captive Derelict 5715 | -6/Extension | Spotted B-75 Beast 5719 | -6/Extension | Allies destroyed B-75 Beast 5736 | -6/Extension | Allies destroyed B-75 Beast 5846 | -6/Extension | Rescued a captive Derelict 5935 | -6/Extension | Rescued a captive Derelict 6033 | -6/Extension | Rescued a captive Derelict 6277 | -6/Extension | Rescued a captive Derelict 6278 | -6/Extension | Rescued a captive Derelict 6282 | -6/Extension | Build established: Commander-Mutant 6340 | -6/Extension | Discovered exit to Factory (range 10) 6342 | -6/Extension | Discovered new exit (range 6) 6407 | -6/Extension | Destroyed A7 6413 | -6/Extension | Extracted ID and sensor layout for unrecognized location from A7's data core 6418 | -6/Extension | Identified exit to Cetus 6466 | -6/Extension | Entered Cetus 6466 | -6/Cetus | Accompanied by 11 allies 6488 | -6/Cetus | Spotted Cetus Guard 6490 | -6/Cetus | Spotted Cetus Guard 6492 | -6/Cetus | Spotted Cetus Guard 6506 | -6/Cetus | Allies destroyed Cetus Guard 6506 | -6/Cetus | Spotted Cetus Guard 6510 | -6/Cetus | Allies destroyed Cetus Guard 6515 | -6/Cetus | Allies destroyed Cetus Guard 6520 | -6/Cetus | Allies destroyed Cetus Guard 6793 | -6/Cetus | Discovered new exit (range 22) 6855 | -6/Cetus | Build established: Mutant 6864 | -6/Cetus | Identified exit to Archives 6866 | -6/Cetus | Entered Archives 6866 | -6/Archives | Accompanied by 1 ally 6900 | -6/Archives | Met Zhirov 6900 | -6/Archives | Discovered new exit (range 22) 6906 | -6/Archives | Reinforcements dispatched to Archives 6909 | -6/Archives | Discovered new exit (range 22) 6928 | -6/Archives | Read partially decrypted archive contents 6928 | -6/Archives | Read partially decrypted archive contents 6951 | -6/Archives | Reinforcements dispatched to Archives 6963 | -6/Archives | Identified exit to Hub_04(d) 6966 | -6/Archives | Entered Hub_04(d) 7458 | -6/Hub_04(d) | Garrison activated, responded to threat 7506 | -6/Hub_04(d) | Lost 4 parts (1p2n1u) 7518 | -6/Hub_04(d) | Destroyed 8 combat bots 7719 | -6/Hub_04(d) | Lost 3 parts (1n2u) 7746 | -6/Hub_04(d) | Core integrity fell below 50% 7775 | -6/Hub_04(d) | Entered Factory 7775 | -5/Factory | Evolved 2 slots: Utility x2 7801 | -5/Factory | Lost 12 parts (1p6n3u2w) 7803 | -5/Factory | Assembled infested ambush trap array 7854 | -5/Factory | Core integrity fell below 50% 7854 | -5/Factory | Core integrity fell below 20% 7869 | -5/Factory | Destroyed by H-66 Slayer with Gauss Rifle Last Messages --------------- 07843_ K-01 Serf destroyed. 07845_ Acquired 7 matter. 07846_ Adv. Melee Analysis Suite destroyed. 07846_ Enh. Optical Array destroyed. 07849_ The unstable cave ceiling collapses. 07851_ Penetrated by Slug. 07851_ Slug penetrates Wall. 07852_ Penetrated by Slug. 07853_ Nuclear Reactor explodes. 07854_ Slug penetrates H-66 Slayer. 07855_ Penetrated by Slug. 07866_ Attempting to rewire G-50 Soldier. 07866_ G-50 Soldier is broken beyond repair. 07867_ Attempting to rewire G-50 Soldier. 07867_ G-50 Soldier is broken beyond repair. 07868_ Acquired 25 matter. 07868_ Slug penetrates as-69029. 07868_ as-69029 destroyed. 07868_ Slug penetrates as-64230. 07869_ Penetrated by Slug. Map ----- +----------------------------------------------------+ | ?????????????????????????????????????????????????? | | ?????????????????????????????????????????????????? | | ?????????????????????????????????????????????????? | | ?????????????????????????????????????????????????? | | ?????????????????????????????????????????????????? | | ?????????????????????? ??????????????????????? | | ?????????????????????? ??????????????????????? | | ?????????????????????# #?????????????????????? | | ?????????????????????# #?????????????????????? | | ?????????????????????# #?????????????????????? | | ?????????????????????# #?????????????????????? | | ?????????????????????# #?????????????????????? | | ?????????????????????# #?????????????????????? | | ?????????????????????# #?????????????????????? | | ?????????????????????%= #?????????????????????? | | ?????????????????????#% #?????????????????????? | | ?????????????????????# #?????????????????????? | | ?????????????????????#a ##########????????????? | | ??????###########????#a # #????????????? | | ??????# ! #????# # #????????????? | | ??????# #????# a g# #????????????? | | ??????# """" !!!#????# !%# #????????????? | | ??????# """" !!!#????# !=# #????????????? | | ??????# """" ! #????#a # #????????????? | | #?????# """" #????#%a =%# #????????????? | | ####### !#????#!% @l# ??????????????? | | # # #????#gg s# ????????????????? | | # ###+############= * ###+####??????????????? | | # = ##############?? | | + %| # #?? | | # ! # #?? | | # % # #?? | | # % # #?? | | ##########+################## # #?? | | #???# #??????????#d ![# #?? | | ????# #?#######??# ![!# #?? | | ????# ### #### h!%# #?? | | ????# # h!!+ #?? | | ????# # % ![ % #?? | | ????# #?? | | ????# = #?? | | ????# % ##+############ | | ????# % " | | ????# "%" | | ????# # " | | ????# # | | ????##############!! """"""""" | | ?????????????????#!! ###### | | ?????????????????# """ ###### =%""""""""" | | ?????????????????# Y" ## | +----------------------------------------------------+ Best States ------------- Heat Dissipation 59 Energy Generation 25 Energy Capacity 350 Matter Stores 300 Matter Capacity 300 Sight Range 22 Terrain Scan Density 10 Armor Coverage 825 Resistance: TH 10 Weapon Shielding 33 Evasion (%) 57 Melee Accuracy 8 Recoil Reduction 4 Energy Filtering 30 Offensive Hacking 20 Item Schematics ----------------- Lrg. Storage Unit | -8/Materials | Hacked Hcp. Storage Unit | -8/Materials | Hacked Robot Schematics ------------------ None Fabricated ------------ Nothing Alien Tech Used ----------------- None Achievements -------------- None Challenges ------------ None Game ------ Seed SeismicMappingRay Manual? 0 Play Time 01:11:15 Cumulative 561.1 hours Start 2023.05.27 @ 13:16:24 End 2023.05.27 @ 14:43:14 Sessions 1 Manual Loads 0 Difficulty Rogue Special Mode None Game No. 353 Rogue 353 Adventurer 0 Explorer 0 Win Type - Total 37 Types 24/1/6/6/0/0/0/0/0 Lore% 82 Gallery% 84 Achievement% 78 Wizard Run 0 Options --------- ASCII 0 Keyboard 1 Movement Numpad Keybinds 0 Fullscreen 1 Font 36/X11 Map View 76x50 Tactical HUD 1 Map Filters NONE Filters NONE Steam 1 RUN: 8324de35-372e-4884-b7bd-25853ba30129